Cogmind - Beta 16.1 @@@ ROGUE MODE // 2026.03.20 @ 03:02:50 Player: J1ang-5h1 Result: Destroyed by G-47 Trooper with Particle Gun Performance ------------- Evolutions (0) 0 Regions Visited (4) 800 Robots Destroyed (25) 125 Value Destroyed (483) 483 Prototype IDs (24) 480 Alien Tech Used (0) 0 Bonus (293) 293 TOTAL SCORE: 2181 Bonus ------- Aligned with FarCom 300 Friendly Fire -7 Cogmind --------- Core Integrity 0/250 Matter 124/300 Energy 86/100 System Corruption 2% Temperature Cool (13) Movement Core (500) Ox9 Location -9/Mines Parts ------- > --- POWER (1) -------- (None) > --- PROPULSION (2) --- (None) > --- UTILITY (2) ------ Large Storage Unit Improved Light Armor Plating > --- WEAPON (2) ------- Shotgun Shotgun > --- INVENTORY (15) --- Compact Wheel Compact Wheel Cooling System High-capacity Battery (250) Large Matter Pod (150) Structural Scanner Improved Terrain Scanner Seismic Detector ECM Suite Shield Generator Improved Medium Laser Latent Energy Streamer Mining Laser Peak State ------------ > --- POWER ------------ Ion Engine > --- PROPULSION ------- Compact Wheel Compact Wheel > --- UTILITY ---------- Cooling System Large Storage Unit > --- WEAPON ----------- Improved Medium Laser Improved Medium Laser > --- INVENTORY -------- Wheel Cooling System Large Battery Structural Scanner Seismic Detector Medium Laser Improved Medium Laser Assault Rifle Light Assault Rifle Shotgun Shotgun Shotgun Grenade Launcher Mining Laser [Rating: 14] Favorites ----------- Power Ion Engine Engine Ion Engine Propulsion Compact Wheel Wheel Compact Wheel Utility Large Storage Unit Device Cooling System Storage Large Storage Unit Protection Improved Light Armor Plating Weapon Improved Medium Laser Energy Gun Improved Medium Laser Ballistic Gun Assault Rifle Launcher Grenade Launcher Build | -11 -10 -10 -10 -9 ------- Run | Yrd Mat Min Exi Min Slots Evolved . | . . . . . Power . | . . . . . Propulsion . | . . . . . Utility . | . . . . . Weapon . | . . . . . Parts Attached 25 | 7 10 2 1 5 Power 3 | 1 1 1 . . Engine 3 | 1 1 1 . . Core . | . . . . . Reactor . | . . . . . Propulsion 4 | 2 1 1 . . Treads . | . . . . . Leg . | . . . . . Wheel 4 | 2 1 1 . . Hover . | . . . . . Flight . | . . . . . Utility 7 | 2 3 . 1 1 Device 3 | 1 1 . 1 . Storage 3 | 1 2 . . . Processor . | . . . . . Hackware . | . . . . . Protection 1 | . . . . 1 Artifact . | . . . . . Weapon 11 | 2 5 . . 4 Energy Gun 5 | 2 3 . . . Energy Cannon . | . . . . . Ballistic Gun 5 | . 1 . . 4 Ballistic Cannon . | . . . . . Launcher 1 | . 1 . . . Special Weapon . | . . . . . Impact Weapon . | . . . . . Slashing Weapon . | . . . . . Piercing Weapon . | . . . . . Special Melee Weapon . | . . . . . Unidentified Prototypes 1 | . 1 . . . Parts Lost 11 | . 2 2 . 7 Power 3 | . 1 1 . 1 Propulsion 4 | . 1 1 . 2 Utility 1 | . . . . 1 Weapon 3 | . . . . 3 Highest Loss Streak 5 | . 1 2 . 5 To Critical Strikes . | . . . . . Average Backups 9 | . 5 14 14 13 Power . | . . . . . Propulsion . | . . . . . Utility 4 | . 1 7 7 7 Weapon 4 | . 3 7 7 5 Tool/Special . | . . . . . Unused Backups 14 | . 4 . 1 9 Power . | . . . . . Propulsion 1 | . 1 . . . Utility 9 | . 2 . 1 6 Weapon 4 | . 1 . . 3 Tool/Special . | . . . . . Average Slot Usage (%) 92 | . 98 98 82 49 Engine 12 | . 13 13 14 2 Wheel 25 | . 26 27 28 4 Device 13 | . 14 14 14 2 Storage 14 | . 14 14 14 14 Energy Gun 18 | . 18 28 10 . Ballistic Gun 5 | . 8 . . 21 Peak Build Rating 14 | 7 14 14 14 11 Average Rating 10 | 5 8 13 10 8 On Entrance 8 | . 7 14 14 9 Avg Prop Armor Cover (%) . | . . . . . Naked Turns . | . . . . . Heaviest Build 33 | 13 33 33 33 30 Greatest Support 32 | 26 32 32 26 26 Greatest Overweight (x) 9 | . 1 2 1 9 Average Overweight (x) . | . . 1 1 6 Largest Inventory Capacity 15 | 8 15 15 15 15 Average Capacity 13 | 6 12 15 15 15 Most Carried 15 | 3 15 15 15 15 Average Carried 9 | 1 5 14 14 13 Final Capacity 15 | 8 15 15 15 15 Final Carried 15 | 1 15 15 15 13 Class Distribution -------------------- 100% | Mutant Dominant Class ---------------- Mutant | -10/Materials Mutant | -10/Mines Mutant | -10/Exiles Mutant | -9/Mines Resources | -11 -10 -10 -10 -9 ----------- Run | Yrd Mat Min Exi Min Matter Collected 533 | 270 92 113 . 58 Remotely . | . . . . . Salvage Created 749 | 85 337 86 . 241 Parts 53 | 5 30 6 . 12 Haulers Intercepted 1 | . 1 . . . Recyclers Shooed 1 | . . . . 1 Parts Field Recycled . | . . . . . Retrieved Matter . | . . . . . Parts Self-Destructed . | . . . . . Prevented . | . . . . . Parts Restored . | . . . . . Kills | -11 -10 -10 -10 -9 ------- Run | Yrd Mat Min Exi Min Combat Hostiles Destroyed 28 | . 10 2 . 16 Guns 14 | . 7 2 . 5 AOE 14 | . 3 . . 11 Classes Destroyed 11 | 2 6 . . 3 Worker 1 | . . . . 1 Builder 1 | . 1 . . . Tunneler 2 | 2 . . . . Hauler 1 | . 1 . . . Recycler 2 | 1 . . . 1 Operator 1 | . 1 . . . Watcher 2 | . 2 . . . Swarmer 6 | . 6 . . . Grunt 8 | . 4 2 . 2 Brawler 1 | . . . . 1 Assembled 13 | . . . . 13 Best Kill Streak 15 | 3 5 2 . 15 Combat Bots Only 13 | . 4 2 . 13 Max Kills in Single Turn 8 | 1 3 1 . 8 Gunslinging . | . . . . . Exploded 8 | . 2 . . 8 Melee . | . . . . . Uniques/NPCs Destroyed . | . . . . . Combat | -11 -10 -10 -10 -9 -------- Run | Yrd Mat Min Exi Min Hostile Shots Fired 107 | . 37 18 . 52 Missed 30 | . 13 6 . 11 Hits 77 | . 24 12 . 41 Melee 4 | . . . . 4 Projectile 73 | . 24 12 . 37 AOE 6 | . . . . 6 Critical Strikes 5 | . 1 1 . 3 Damage Taken 1243 | . 243 159 . 841 Core 250 | . 36 38 . 176 Absorbed by Shields . | . . . . . Core Remaining (%) 100 | 100 . . . . Volleys Fired 67 | 4 27 7 . 29 Largest 2 | 2 2 2 . 2 Hottest 112 | 100 112 112 . 46 Shots Fired 120 | 8 53 15 . 44 Gun 116 | 8 52 15 . 41 Cannon . | . . . . . Launcher 4 | . 1 . . 3 Special . | . . . . . Kinetic 58 | . 17 . . 41 Thermal 58 | 8 35 15 . . Explosive 4 | . 1 . . 3 Electromagnetic . | . . . . . Robot Hit Streak 13 | 5 6 2 . 13 Robot Miss Streak 5 | 1 4 5 . 5 Penetration Max . | . . . . . Secondary Targets 2 | . . . . 2 Max Gunslinging Chain 1 | . . . . 1 Shots Hit Robots 73 | 6 29 5 . 33 Core Hits 75 | 4 20 3 . 48 Critical Kills . | . . . . . Critical Parts Destroyed 1 | . . . . 1 Critical Strikes 7 | 1 4 1 . 1 Burn 6 | 1 4 1 . . Destroy 1 | . . . . 1 Melee Attacks . | . . . . . Impact . | . . . . . Slashing . | . . . . . Piercing . | . . . . . Sneak Attacks . | . . . . . Combat Hostiles . | . . . . . Follow-up Attacks . | . . . . . Damage Inflicted 1958 | 72 741 84 . 1061 Guns 1023 | 72 348 84 . 519 Cannons . | . . . . . Explosions 935 | . 393 . . 542 Melee . | . . . . . Ramming . | . . . . . Kinetic 651 | . 132 . . 519 Thermal 372 | 72 216 84 . . Explosive 935 | . 393 . . 542 Electromagnetic . | . . . . . Impact . | . . . . . Slashing . | . . . . . Piercing . | . . . . . Highest Corruption 2 | . 2 2 2 2 Average Corruption 2 | . 2 2 2 2 Corruption Purged . | . . . . . Corruption Blocked . | . . . . . Effects 20 | . 6 9 3 2 Message Errors 7 | . 1 3 2 1 Matter Fused 6 | . 2 4 . . Heat Flow Errors 3 | . 2 . 1 . Energy Discharges 2 | . 1 1 . . Parts Fused 1 | . . . . 1 Misfires 1 | . . 1 . . Overload Shots . | . . . . . Overflow Damage 5 | . 3 . . 2 Projectiles . | . . . . . Explosions 5 | . 3 . . 2 Melee . | . . . . . Knockbacks . | . . . . . Impact . | . . . . . Kinetic . | . . . . . Secondary . | . . . . . Self-Inflicted Damage 43 | . 20 . . 23 Shots 2 | . 1 . . 1 Rammed . | . . . . . Targets Rammed . | . . . . . Kicked . | . . . . . Crushed . | . . . . . Highest Temperature 275 | 58 275 15 94 19 Average Temperature 42 | 28 49 7 52 9 Received Heat Transfer 323 | . 60 108 . 155 Siege Activations . | . . . . . Martial Activations . | . . . . . Shielding Activations . | . . . . . Robots Disrupted . | . . . . . Combat Hostiles . | . . . . . Robots Corrupted . | . . . . . Combat Hostiles . | . . . . . Parts Fried . | . . . . . Impact Corruptions . | . . . . . Robots Melted . | . . . . . Combat Hostiles . | . . . . . Parts Melted 2 | 1 1 . . . Heat Transferred 1480 | 296 925 259 . . Parts Sabotaged . | . . . . . Parts Stolen . | . . . . . Parts Stripped . | . . . . . Power Chain Reactions . | . . . . . Alert | -11 -10 -10 -10 -9 ------- Run | Yrd Mat Min Exi Min Maximum Alert Level . | . . . . . Low Security (%) 100 | 100 100 100 . 100 Level 1 . | . . . . . Level 2 . | . . . . . Level 3 . | . . . . . Level 4 . | . . . . . Level 5 . | . . . . . High Security . | . . . . . Max Security . | . . . . . Peak Influence 151 | 10 151 40 . 40 Initial 4 | . . 4 . . Average 39 | 2 66 5 . 8 Influence Increases 575 | 15 411 56 . 93 Destroy 0b10 Robot/C 300 | . 200 40 . 60 Destroy 0b10 Robot/NC 50 | 15 25 . . 10 Destroy Leader 66 | . 56 10 . . Successful Hack 26 | . 20 6 . . Select Force Hacks 60 | . 60 . . . Disable Machine 30 | . 30 . . . Destroy Structure 43 | . 20 . . 23 Influence Decreases 545 | 15 400 67 . 63 Entered New Map 7 | . . 7 . . Time Decay 475 | 15 380 60 . 20 Lost Part 47 | . 20 . . 27 Lost Ally 16 | . . . . 16 Squads Dispatched 5 | . 4 . . 1 Investigation 2 | . 2 . . . Extermination . | . . . . . Reinforcement 2 | . 2 . . . Assault 1 | . . . . 1 Garrison . | . . . . . Intercept . | . . . . . Searches Triggered . | . . . . . Construction Impeded . | . . . . . Haulers Reinforced . | . . . . . Active Scanning Responses . | . . . . . Cargo Convoy Interrupts . | . . . . . Stealth | -11 -10 -10 -10 -9 --------- Run | Yrd Mat Min Exi Min Distress Signals . | . . . . . Communications Jammed . | . . . . . Distress Signals . | . . . . . Times Spotted 46 | . 18 2 . 26 Peak Tracking Total 20 | . 4 2 . 20 Tactical Retreats . | . . . . . Traps | -11 -10 -10 -10 -9 ------- Run | Yrd Mat Min Exi Min Traps Triggered 1 | . 1 . . . Indirectly . | . . . . . Trap Hack Attempts . | . . . . . Triggered . | . . . . . Disarmed . | . . . . . Reprogrammed . | . . . . . Reused . | . . . . . Traps Extracted . | . . . . . Installed . | . . . . . Triggered . | . . . . . Machines | -11 -10 -10 -10 -9 ---------- Run | Yrd Mat Min Exi Min Machines Disabled 2 | . 2 . . . Max in Single Turn 2 | . 2 . . . Machines Repaired . | . . . . . Machines Dismantled . | . . . . . Machines Sabotaged . | . . . . . Overloaded Fab Kills . | . . . . . Hacking | -11 -10 -10 -10 -9 --------- Run | Yrd Mat Min Exi Min Machines Accessed 10 | . 7 1 2 . Terminals 6 | . 5 1 . . Fabricators . | . . . . . Repair Stations . | . . . . . Recycling Units 2 | . 2 . . . Scanalyzers . | . . . . . Garrison Access . | . . . . . Total Hacks 27 | . 20 2 5 . Successful 15 | . 9 1 5 . Failed 12 | . 11 1 . . Catastrophic . | . . . . . Database Lockouts . | . . . . . Manual 20 | . 17 2 1 . Terminals 17 | . 15 2 . . Fabricators . | . . . . . Repair Stations . | . . . . . Recycling Units 5 | . 5 . . . Scanalyzers . | . . . . . Garrison Access . | . . . . . Terminal Hacks 7 | . 1 1 5 . Record 4 | . . . 4 . Robot Analysis 2 | . 1 1 . . Proto ID Catalog 1 | . . . 1 . Fabricator Hacks . | . . . . . Repair Station Hacks . | . . . . . Recycling Unit Hacks 1 | . 1 . . . Report Inventory 1 | . 1 . . . Scanalyzer . | . . . . . Garrison Access Hacks . | . . . . . Unauthorized Hacks 7 | . 7 . . . Terminals 5 | . 5 . . . Botnet 2 | . 2 . . . Skim 3 | . 3 . . . Fabricators . | . . . . . Repair Stations . | . . . . . Recycling Units 2 | . 2 . . . Tunnel 2 | . 2 . . . Scanalyzers . | . . . . . Garrison Access . | . . . . . Data Cores Recovered . | . . . . . Used . | . . . . . Hacking Detections 7 | . 6 1 . . Full Trace Events . | . . . . . Feedback Events . | . . . . . Feedback Blocked . | . . . . . Robot Schematics Acquired . | . . . . . Robots Built . | . . . . . Authchips . | . . . . . Time . | . . . . . Total Robot Build Rating . | . . . . . Part Schematics Acquired . | . . . . . Parts Built . | . . . . . Authchips . | . . . . . Time . | . . . . . Total Part Build Rating . | . . . . . Part Studies Acquired . | . . . . . Parts Repaired . | . . . . . Time . | . . . . . Parts Recycled . | . . . . . Recycled Matter . | . . . . . Retrieved Matter . | . . . . . Retrieved Components . | . . . . . Parts Scanalyzed . | . . . . . Part Schematics Acquired . | . . . . . Parts Damaged . | . . . . . Bothacking | -11 -10 -10 -10 -9 ------------ Run | Yrd Mat Min Exi Min Used RIF Installer . | . . . . . Robots Hacked . | . . . . . Non-combat . | . . . . . Combat . | . . . . . Robot Hacks Applied . | . . . . . Relay Couplers Released . | . . . . . Fabnet Peak Effective % . | . . . . . Robots Rewired . | . . . . . Allies Hacked . | . . . . . Hacks Repelled . | . . . . . Allies | -11 -10 -10 -10 -9 -------- Run | Yrd Mat Min Exi Min Total Allies 3 | . . 3 . . Largest Group 3 | . . 3 3 3 Highest-Rated Group 40 | . . 40 40 40 Highest-Rated Ally 16 | . . 16 16 16 Total Orders . | . . . . . Ally Attacks 6 | . . . . 6 Total Damage 55 | . . . . 55 Kills . | . . . . . Allies Corrupted . | . . . . . Allies Melted . | . . . . . Intel | -11 -10 -10 -10 -9 ------- Run | Yrd Mat Min Exi Min Active Infowar (turns) 830 | 42 788 . . . Seismic 830 | 42 788 . . . Robot Analysis Total 2 | . 1 1 . . Derelict Logs Recovered 3 | . . 3 . . Drone Launches . | . . . . . Drone Recoveries . | . . . . . Exploration | -11 -10 -10 -10 -9 ------------- Run | Yrd Mat Min Exi Min Turns Passed 1924 | 73 899 508 308 136 Spaces Moved 1556 | 56 754 441 290 15 Core 20 | 9 . . . 11 Treads . | . . . . . Legs . | . . . . . Wheels 1536 | 47 754 441 290 4 Hover . | . . . . . Flight . | . . . . . Fastest Speed 50 | 50 90 105 105 105 Average Speed 104 | 83 98 107 105 364 Slowest Speed 500 | 90 115 130 105 500 Overloaded Moves . | . . . . . Propulsion Burnouts . | . . . . . Robots Hopped . | . . . . . Potential Cave-ins . | . . . . . Cave-ins Triggered . | . . . . . Exploration Rate (%) 53 | 3 98 90 69 6 Regions Visited 4 Branch Regions 3 Pre-discovered Areas 3 | . 2 . 1 . Known Exits Taken . | . . . . . Unknown Exits Taken 4 | 1 1 1 1 . Scrap Searched 2 | . . 2 . . Spaces Dug . | . . . . . Terrain Destroyed 45 | . 19 . . 26 Melee . | . . . . . Projectile . | . . . . . AOE 45 | . 19 . . 26 Terrain Rammed . | . . . . . Walls Destroyed . | . . . . . Machines Disabled . | . . . . . Actions | -11 -10 -10 -10 -9 --------- Run | Yrd Mat Min Exi Min Total 1740 | 74 855 461 296 54 Wait 39 | . 28 11 . . Move 1552 | 55 753 440 289 15 Hop . | . . . . . Pick Up 41 | 8 26 1 2 4 Fast Attach 1 | . . 1 . . Attach 18 | 7 4 1 . 6 Detach . | . . . . . Swap 8 | . 7 . 1 . Drop 14 | . 10 . 4 . Fire 67 | 4 27 7 . 29 Melee . | . . . . . Ram . | . . . . . Kick . | . . . . . Crush . | . . . . . Escape Stasis . | . . . . . Rewire . | . . . . . Trap . | . . . . . Miscellaneous . | . . . . . Route ------- -11/Scrapyard -10/Materials (discovered 4 exits: [*Mat x3] / *Min) -10/Mines (discovered 3 exits: [*Mat x2] / *Exi) -10/Exiles -9/Mines History --------- Turn | Location | Event 15 | -11/Scrapyard | Discovered new exit (range 16) 74 | -11/Scrapyard | Entered Materials 305 | -10/Materials | Build established: Mutant 340 | -10/Materials | Discovered new exit (range 14) 560 | -10/Materials | Discovered new exit (range 4) 783 | -10/Materials | Discovered new exit (range 16) 902 | -10/Materials | Discovered new exit (range 16) 973 | -10/Materials | Entered Mines 980 | -10/Mines | Learned 2 Materials zone layouts 1042 | -10/Mines | Learned Materials emergency access door positions 1063 | -10/Mines | Learned Materials terminal intel 1222 | -10/Mines | Assisted by bots powering up and referring to "LRC-V3" 1342 | -10/Mines | Discovered new exit (range 10) 1355 | -10/Mines | Discovered new exit (range 13) 1463 | -10/Mines | Deemed a non-threat by the Exiles lab entrance 1464 | -10/Mines | Discovered new exit (range 5) 1481 | -10/Mines | Entered Exiles 1481 | -10/Exiles | Accompanied by 3 allies 1508 | -10/Exiles | Met 8R-AWN 1523 | -10/Exiles | Met EX-HEX 1574 | -10/Exiles | Met EX-DEC 1593 | -10/Exiles | Learned location of Zion (-6) 1616 | -10/Exiles | Met EX-BIN 1627 | -10/Exiles | Aligned with FarCom system 1628 | -10/Exiles | Given EX-Vault access code 1655 | -10/Exiles | Opened EX-Vault 1663 | -10/Exiles | Found Latent Energy Streamer 1684 | -10/Exiles | Warned to stay clear of 0b10 Research branches 1772 | -10/Exiles | Discovered new exit (range 14) 1789 | -10/Exiles | Left Exiles lab with Latent Energy Streamer 1789 | -10/Exiles | Entered Mines 1789 | -9/Mines | Accompanied by 3 allies 1790 | -9/Mines | Met a Derelict testing a Signal Generator 1790 | -9/Mines | Assembled infested the area 1795 | -9/Mines | Assisted by a Guerilla fighting off Assembled 1807 | -9/Mines | Core integrity fell below 50% 1810 | -9/Mines | Core integrity fell below 20% 1822 | -9/Mines | Met a Derelict bent on vengeance 1835 | -9/Mines | Lost 5 parts (1p2n1u1w) 1835 | -9/Mines | Lost 5 allies 1845 | -9/Mines | Destroyed 13 combat bots 1925 | -9/Mines | Destroyed by G-47 Trooper with Particle Gun Last Messages --------------- 01896_ K-01 Serf collects debris. 01896_ U-05 Engineer lays Concrete. 01897_ G-34 Mercenary destroyed. 01898_ U-05 Engineer builds a Wall. 01899_ K-01 Serf collects debris. 01904_ U-05 Engineer builds a Wall. 01906_ K-01 Serf collects debris. 01908_ U-05 Engineer lays Concrete. 01909_ K-01 Serf collects debris. 01909_ G-34 Mercenary destroyed. 01911_ U-05 Engineer lays Concrete. 01912_ K-01 Serf collects debris. 01913_ U-05 Engineer lays Concrete. 01916_ K-01 Serf collects debris. 01916_ U-05 Engineer lays Concrete. 01919_ K-01 Serf collects debris. 01919_ Shotgun destroyed. 01921_ Critical hit (Burn: +37). 01921_ U-05 Engineer builds a Wall. 01922_ K-01 Serf collects debris. Map ----- +----------------------------------------------------+ | ?????????????????????????????????????????????? | | ?????????????????????????????????????????????? | | ?????????????????????????????????????????????? | | ?????????????????????????????????????????????? | | ?????????????????????????????????????????????? | | ?????????????????????????????????????????????? | | ?????????????????????????????????????????????? | | ?????????????????????????????????????????????? | | ?????????????????????????????????????????????? | | ?????????????????????????????????????????????? | | ?????????????????????????????????????????????? | | ?????????????????????????????????????????????? | | ?????????????????????????????????????????????? | | ?????????????????????????????????????????????? | | ?????????????????????????????????????????????? | | ?????????????????????????????????????????????? | | ?????????????????????????????????????????????? | | ?????????????????????????????????????????????? | | ?????????????????????????????????????????????? | | ?????????????????????????###?????????????????? | | ?????????????????????????#%m??????????????g??? | | ?????????????????????????#g##?######?????????? | | ???????????????????????###[*### ###???????? | | ???????????????????????# *%= ## # ###?????? | | ??????????????????????##=%=! ## # ##????? | | ??????????????????????# @ k ### # #????? | | ??????????????????????# < u ##???? | | ??????????????????????# %% !% % #???? | | ??????????????????????# % # # = #???? | | ??????????????????????## %## ### ## ##???? | | ???????????????????????##### #%# ###????? | | ???????????????????????????##### ######??????? | | ??????????????????????????????## # ??????????? | | ?????????????????????????????? # ##??????????? | | ?????????????????????????????# # ##??????????? | | ?????????????????????????????###%#???????????? | | ???????????????????????????????# ???????????? | | ???????????????????????????????###???????????? | | ?????????????????????????????????????????????? | | ?????????????????????????????????????????????? | | ?????????????????????????????????????????????? | | ?????????????????????????????????????????????? | | ?????????????????????????????????????????????? | | ?????????????????????????????????????????????? | | | | | | | | | | | | | +----------------------------------------------------+ Best States ------------- Heat Dissipation 47 Energy Generation 10 Energy Capacity 250 Matter Stores 300 Matter Capacity 300 Sight Range 16 Terrain Scan Density 10 Armor Coverage 150 Evasion (%) 42 Item Schematics ----------------- None Robot Schematics ------------------ None Fabricated ------------ Nothing Repaired ---------- Nothing Studied --------- None Alien Tech Used ----------------- None Achievements -------------- None Challenges ------------ None Game ------ Seed ScrapoidPitchforkPower Manual? 0 Play Time 00:20:48 Cumulative 399.2 hours Start 2026.03.20 @ 02:44:05 End 2026.03.20 @ 03:02:50 Sessions 1 Manual Loads 0 Difficulty Rogue Special Mode None Game No. 290 Rogue 280 Adventurer 0 Explorer 10 Win Type - Total 5 Types 5/0/0/0/0/0/0/0/0/0 Lore% 81 Gallery% 66 Achievement% 43 Wizard Run 0 Options --------- Layout 2 ASCII 0 Keyboard 0 Movement Arrows Keybinds 1 Fullscreen 1 Font 24/Smallcaps Map View 50x44 Zoom Use 0% Tactical HUD 1 Map Filters NONE Filters NONE Steam 1 RUN: 5d9e3ce2-8b5f-44dc-ad54-0d5553674e27